fUSD/lending_fUSD_20241222
["ID","MTS","AMOUNT","RATE_DAILY","PERIOD"]
[346276593,1734859839547,-500.0,0.00019178,2]
[346276594,1734859839557,-502.58,0.00019178,2]
[346276595,1734859839567,-500.0,0.00019178,2]
[346276596,1734859839576,-500.0,0.00019178,2]
[346276597,1734859839586,-500.0,0.00019178,2]
[346276598,1734859839596,-500.0,0.00019178,2]
[346276599,1734859839605,-500.0,0.00019178,2]
[346276600,1734859839614,-500.0,0.00019178,2]
[346276601,1734859839624,-500.0,0.00019178,2]
[346276602,1734859839633,-500.0,0.00019178,2]
[346276603,1734859839643,-500.0,0.00019178,2]
[346276604,1734859839652,-500.0,0.00019178,2]
[346276605,1734859839661,-500.0,0.00019178,2]
[346276606,1734859839671,-500.0,0.00019178,2]
[346276607,1734859839680,-500.0,0.00019178,2]
[346276608,1734859839689,-500.0,0.00019178,2]
[346276609,1734859839700,-852.08,0.00019178,2]
[346276610,1734859839709,-500.0,0.00019178,2]
[346276611,1734859839719,-500.0,0.00019178,2]
[346276612,1734859839730,-500.0,0.00019178,2]
[346276613,1734859839745,-500.0,0.00019178,2]
[346276614,1734859839754,-500.0,0.00019178,2]
[346276615,1734859839764,-500.0,0.00019178,2]
[346276617,1734859839773,-500.0,0.00019178,2]
[346276618,1734859839783,-500.0,0.00019178,2]
[346276619,1734859839793,-264.53051576,0.00019178,2]
[346276620,1734859839803,-500.0,0.00019178,2]
[346276621,1734859839848,-500.0,0.00019178,2]
[346276622,1734859839858,-500.0,0.00019178,2]
[346276624,1734859839868,-500.0,0.00019178,2]
[346276625,1734859839877,-500.0,0.00019178,2]
[346276626,1734859839886,-182.97878895,0.00019178,2]
[346276627,1734859839895,-500.0,0.00019178,2]
[346276628,1734859839904,-978.65,0.00019178,2]
[346276629,1734859839913,-557.98,0.00019178,2]
[346276630,1734859839922,-500.0,0.00019178,2]
[346276631,1734859839931,-500.0,0.00019178,2]
[346276632,1734859839940,-696.39,0.00019178,2]
[346276633,1734859839949,-200.12970712,0.00019178,2]
[346276634,1734859839958,-500.0,0.00019178,2]
[346276635,1734859839967,-500.0,0.00019178,2]
[346276636,1734859839976,-500.0,0.00019178,2]
[346276637,1734859839984,-500.0,0.00019178,2]
[346276638,1734859839993,-500.0,0.00019178,2]
[346276639,1734859840002,-500.0,0.00019178,2]
[346276640,1734859840011,-500.0,0.00019178,2]
[346276641,1734859840020,-500.0,0.00019178,2]
[346276642,1734859840029,-500.0,0.00019178,2]
[346276643,1734859840037,-507.74,0.00019178,2]
[346276644,1734859840046,-500.0,0.00019178,2]
[346276645,1734859840055,-500.0,0.00019178,2]
[346276646,1734859840064,-500.0,0.00019178,2]
[346276647,1734859840073,-2889.29,0.00019178,2]
[346276648,1734859840082,-617.57,0.00019178,2]
[346276649,1734859840091,-500.0,0.00019178,2]
[346276650,1734859840100,-500.0,0.00019178,2]
[346276651,1734859840109,-500.0,0.00019178,2]
[346276652,1734859840119,-500.0,0.00019178,2]
[346276653,1734859840128,-500.0,0.00019178,2]
[346276654,1734859840137,-500.0,0.00019178,2]
[346276655,1734859840147,-973.78,0.00019178,2]
[346276656,1734859840156,-500.0,0.00019178,2]
[346276657,1734859840168,-689.56,0.00019178,2]
[346276658,1734859840178,-500.0,0.00019178,2]
[346276659,1734859840187,-929.78,0.00019178,2]
[346276660,1734859840198,-680.79,0.00019178,2]
[346276661,1734859840208,-500.0,0.00019178,2]
[346276662,1734859840219,-500.0,0.00019178,2]
[346276663,1734859840228,-500.0,0.00019178,2]
[346276664,1734859840238,-7355.31,0.00019178,2]
[346276665,1734859840248,-7355.31,0.00019178,2]
[346276666,1734859840258,-619.93,0.00019178,2]
[346276667,1734859840267,-503.48776672,0.00019178,2]
[346276668,1734859840276,-1460.08,0.00019178,2]
[346276669,1734859840285,-732.85,0.00019178,2]
[346276670,1734859840294,-503.20848663,0.00019178,2]
[346276671,1734859840303,-500.0,0.00019178,2]
[346276672,1734859840312,-1363.68,0.00019178,2]
[346276673,1734859840322,-875.5,0.00019178,2]
[346276674,1734859840333,-760.42,0.00019178,2]
[346276675,1734859840344,-10528.19,0.00019178,2]
[346276676,1734859840354,-500.0,0.00019178,2]
[346276677,1734859840365,-500.0,0.00019178,2]
[346276678,1734859840375,-611.74,0.00019178,2]
[346276679,1734859840384,-500.0,0.00019178,2]
[346276680,1734859840394,-1824.2,0.00019178,2]
[346276681,1734859840404,-500.0,0.00019178,2]
[346276682,1734859840414,-559.82,0.00019178,2]
[346276683,1734859840424,-500.0,0.00019178,2]
[346276684,1734859840433,-500.0,0.00019178,2]
[346276685,1734859840442,-8798.92,0.00019178,2]
[346276686,1734859840452,-500.0,0.00019178,2]
[346276687,1734859840462,-500.0,0.00019178,2]
[346276688,1734859840471,-398.55644501,0.00019178,2]
[346276689,1734859840481,-503.99305086,0.00019178,2]
[346276690,1734859840491,-500.0,0.00019178,2]
[346276691,1734859840501,-1000.26,0.00019178,2]
[346276692,1734859840511,-500.06663112,0.00019178,2]
[346276693,1734859840521,-500.0,0.00019178,2]
[346276694,1734859840530,-709.0,0.00019178,2]
[346276695,1734859840539,-562.25,0.00019178,2]
[346276696,1734859840549,-966.19,0.00019178,2]
[346276697,1734859840558,-500.0,0.00019178,2]
[346276698,1734859840567,-1099.83,0.00019178,2]
[346276699,1734859840577,-624.44,0.00019178,2]
[346276700,1734859840587,-500.0,0.00019178,2]
[346276701,1734859840596,-500.0,0.00019178,2]
[346276702,1734859840605,-500.0,0.00019178,2]
[346276703,1734859840615,-650.36,0.00019178,2]
[346276704,1734859840625,-555.82,0.00019178,2]
[346276705,1734859840634,-500.0,0.00019178,2]
[346276706,1734859840643,-6692.92,0.00019178,2]
[346276707,1734859840653,-573.09371116,0.00019178,2]
[346276708,1734859840661,-503.80089995,0.00019178,2]
[346276709,1734859840671,-500.0,0.00019178,2]
[346276710,1734859840680,-826.91,0.00019178,2]
[346276711,1734859840689,-505.29002414,0.00019178,2]
[346276712,1734859840703,-1064.53,0.00019178,2]
[346276713,1734859840712,-580.41,0.00019178,2]
[346276714,1734859840722,-519.68,0.00019178,2]
[346276715,1734859840732,-503.43487745,0.00019178,2]
[346276716,1734859840741,-668.27,0.00019178,2]
[346276717,1734859840751,-500.0,0.00019178,2]
[346276718,1734859840761,-1516.73,0.00019178,2]
[346276719,1734859840771,-500.0,0.00019178,2]
[346276720,1734859840780,-500.0,0.00019178,2]
[346276721,1734859840790,-500.0,0.00019178,2]
[346276722,1734859840798,-500.98,0.00019178,2]
[346276723,1734859840808,-500.0,0.00019178,2]
[346276724,1734859840817,-1394.3,0.00019178,2]
[346276725,1734859840826,-500.0,0.00019178,2]
[346276726,1734859840836,-500.0,0.00019178,2]
[346276727,1734859840846,-1981.85,0.00019178,2]
[346276728,1734859840855,-500.0,0.00019178,2]
[346276729,1734859840865,-2384.57,0.00019178,2]
[346276730,1734859840874,-500.0,0.00019178,2]
[346276731,1734859840884,-2329.25,0.00019178,2]
[346276732,1734859840893,-786.56,0.00019178,2]
[346276733,1734859840904,-512.40858898,0.00019178,2]
[346276734,1734859840913,-288.838143,0.00019178,2]
[346276735,1734859840923,-809.32,0.00019178,2]
[346276736,1734859840932,-500.0,0.00019178,2]
[346276737,1734859840943,-539.8,0.00019178,2]
[346276738,1734859840952,-750.36,0.00019178,2]
[346276739,1734859840961,-763.69,0.00019178,2]
[346276740,1734859840971,-500.0,0.00019178,2]
[346276741,1734859840980,-505.55881758,0.00019178,2]
[346276742,1734859840989,-13466.15,0.00019178,2]
[346276743,1734859840998,-518.43,0.00019178,2]
[346276744,1734859841007,-2540.46,0.00019178,2]
[346276745,1734859841016,-22222.97,0.00019178,2]
[346276746,1734859841025,-1361.38,0.00019178,2]
[346276747,1734859841035,-500.0,0.00019178,2]
[346276748,1734859841044,-670.6,0.00019178,2]
[346276749,1734859841053,-500.0,0.00019178,2]
[346276750,1734859841062,-674.83,0.00019178,2]
[346276751,1734859841071,-1788.86,0.00019178,2]
[346276752,1734859841080,-500.0,0.00019178,2]
[346276753,1734859841089,-2373.5,0.00019178,2]
[346276754,1734859841098,-6504.97,0.00019178,2]
[346276755,1734859841107,-500.0,0.00019178,2]
[346276756,1734859841116,-683.29,0.00019178,2]
[346276757,1734859841125,-2321.87,0.00019178,2]
[346276758,1734859841134,-1095.88,0.00019178,2]
[346276759,1734859841143,-500.0,0.00019178,2]
[346276760,1734859841152,-644.27,0.00019178,2]
[346276761,1734859841162,-500.0,0.00019178,2]
[346276762,1734859841172,-4770.55,0.00019178,2]
[346276763,1734859841182,-2230.66,0.00019178,2]
[346276764,1734859841191,-979.05,0.00019178,2]
[346276765,1734859841199,-500.0,0.00019178,2]
[346276766,1734859841209,-500.0,0.00019178,2]
[346276767,1734859841218,-3180.89,0.00019178,2]
[346276768,1734859841228,-1217.46,0.00019178,2]
[346276769,1734859841237,-500.0,0.00019178,2]
[346276770,1734859841246,-500.0,0.00019178,2]
[346276771,1734859841259,-2759.44,0.00019178,2]
[346276772,1734859841268,-500.0,0.00019178,2]
[346276773,1734859841277,-500.0,0.00019178,2]
[346276774,1734859841287,-500.0,0.00019178,2]
[346276775,1734859841296,-500.0,0.00019178,2]
[346276776,1734859841305,-500.0,0.00019178,2]
[346276777,1734859841315,-500.0,0.00019178,2]
[346276778,1734859841324,-9708.87,0.00019178,2]
[346276779,1734859841333,-882.3,0.00019178,2]
[346276780,1734859841342,-6166.62,0.00019178,2]
[346276781,1734859841351,-3631.54,0.00019178,2]
[346276782,1734859841360,-1660.3,0.00019178,2]
[346276783,1734859841369,-2280.25,0.00019178,2]
[346276784,1734859841377,-500.0,0.00019178,2]
[346276785,1734859841387,-1117.59,0.00019178,2]
[346276786,1734859841396,-1125.4,0.00019178,2]
[346276787,1734859841405,-500.0,0.00019178,2]
[346276788,1734859841414,-500.0,0.00019178,2]
[346276789,1734859841423,-500.0,0.00019178,2]
[346276790,1734859841431,-500.0,0.00019178,2]
[346276791,1734859841441,-732.88,0.00019178,2]
[346276792,1734859841450,-500.0,0.00019178,2]
[346276793,1734859841459,-1000.0,0.00019178,2]
[346276794,1734859841467,-658.83,0.00019178,2]
[346276795,1734859841477,-500.0,0.00019178,2]
[346276796,1734859841486,-500.0,0.00019178,2]
[346276797,1734859841496,-586.02,0.00019178,2]
[346276798,1734859841505,-622.03429253,0.00019178,2]
[346276799,1734859841515,-500.0,0.00019178,2]
[346276800,1734859841524,-500.0,0.00019178,2]
[346276801,1734859841533,-1891.71,0.00019178,2]
[346276802,1734859841543,-156.66,0.00019178,2]
[346276803,1734859841552,-20963.85,0.00019178,2]
[346276804,1734859841561,-500.0,0.00019178,2]
[346276805,1734859841570,-500.0,0.00019178,2]
[346276806,1734859841579,-935.79,0.00019178,2]
[346276807,1734859841589,-552.13,0.00019178,2]
[346276808,1734859841598,-500.0,0.00019178,2]
[346276809,1734859841608,-519.29271996,0.00019178,2]
[346276810,1734859841617,-500.0,0.00019178,2]
[346276811,1734859841626,-688.25,0.00019178,2]
[346276812,1734859841635,-1269.77,0.00019178,2]
[346276813,1734859841644,-786.76,0.00019178,2]
[346276814,1734859841654,-500.0,0.00019178,2]
[346276815,1734859841663,-500.0,0.00019178,2]
[346276816,1734859841672,-500.0,0.00019178,2]
[346276817,1734859841681,-500.0,0.00019178,2]
[346276818,1734859841691,-625.05,0.00019178,2]
[346276819,1734859841701,-500.0,0.00019178,2]
[346276820,1734859841711,-500.0,0.00019178,2]
[346276821,1734859841720,-741.47,0.00019178,2]
[346276822,1734859841729,-500.0,0.00019178,2]
[346276823,1734859841739,-996.12,0.00019178,2]
[346276824,1734859841748,-500.0,0.00019178,2]
[346276825,1734859841758,-3469.88,0.00019178,2]
[346276826,1734859841769,-221.07246636,0.00019178,2]
[346276827,1734859841779,-494.64,0.00019178,2]
[346276828,1734859841789,-150.0,0.00019178,2]
[346276829,1734859841799,-150.0,0.00019178,2]
[346276830,1734859841808,-150.0,0.00019178,2]
[346276831,1734859841817,-155.11,0.00019229,2]
[346276832,1734859841827,-434.57641549,0.00019235,2]
[346276833,1734859841836,-603.32674214,0.00019235,2]
[346276834,1734859841845,-7355.31,0.00019238,2]
[346276835,1734859841854,-7355.31,0.00019238,2]
[346276836,1734859841863,-471661.1136,0.00019239,2]
[346276837,1734859841872,-157.74331685,0.00019252,2]
[346276838,1734859841882,-500.0,0.00019336,2]
[346276839,1734859841891,-8490.03,0.00019339,2]
[346276840,1734859841900,-150.99,0.00019339,2]
[346276841,1734859841908,-9999.99,0.00019339,2]
[346276842,1734859841917,-150.99,0.00019339,2]
[346276843,1734859841931,-411.45,0.00019339,2]
[346276844,1734859841942,-434.57641549,0.00019346,2]
[346276845,1734859841953,-603.32674214,0.00019346,2]
[346276846,1734859841962,-155.11,0.00019442,2]
[346276847,1734859841971,-7355.31,0.00019451,2]
[346276848,1734859841981,-150.0,0.00019451,2]
[346276849,1734859841990,-374.297734,0.00019452,2]
[346276850,1734859842001,-522.722721,0.00019452,2]
[346276851,1734859842010,-500.0,0.00019452,2]
[346276852,1734859842020,-500.0,0.00019452,2]
[346276853,1734859842029,-500.0,0.00019452,2]
[346276854,1734859842039,-500.0,0.00019452,2]
[346276855,1734859842049,-500.0,0.00019452,2]
[346276856,1734859842059,-524.31324442,0.00019452,2]
[346276857,1734859842069,-640.72,0.00019452,2]
[346276858,1734859842079,-500.0,0.00019452,2]
[346276859,1734859842090,-500.0,0.00019452,2]
[346276860,1734859842100,-500.0,0.00019452,2]
[346276861,1734859842111,-500.0,0.00019452,2]
[346276862,1734859842121,-757.21,0.00019452,2]
[346276863,1734859842131,-500.0,0.00019452,2]
[346276864,1734859842141,-573.43,0.00019452,2]
[346276865,1734859842150,-500.0,0.00019452,2]
[346276866,1734859842161,-500.0,0.00019452,2]
[346276867,1734859842171,-500.0,0.00019452,2]
[346276868,1734859842181,-500.0,0.00019452,2]
[346276869,1734859842190,-500.0,0.00019452,2]
[346276870,1734859842203,-500.0,0.00019452,2]
[346276871,1734859842212,-343.08553569,0.00019452,2]
[346276872,1734859842222,-500.0,0.00019452,2]
[346276873,1734859842233,-748.06,0.00019452,2]
[346276874,1734859842242,-500.0,0.00019452,2]
[346276875,1734859842252,-500.0,0.00019452,2]
[346276876,1734859842261,-500.0,0.00019452,2]
[346276877,1734859842271,-500.0,0.00019452,2]
[346276878,1734859842280,-500.0,0.00019452,2]
[346276879,1734859842289,-521.4488125,0.00019452,2]
[346276880,1734859842298,-1001.34,0.00019452,2]
[346276881,1734859842307,-500.0,0.00019452,2]
[346276882,1734859842316,-500.0,0.00019452,2]
[346276883,1734859842327,-500.0,0.00019452,2]
[346276884,1734859842338,-717.56,0.00019452,2]
[346276885,1734859842348,-500.0,0.00019452,2]
[346276886,1734859842359,-500.0,0.00019452,2]
[346276887,1734859842371,-500.0,0.00019452,2]
[346276888,1734859842383,-500.0,0.00019452,2]
[346276889,1734859842393,-518.38,0.00019452,2]
[346276890,1734859842403,-634.93,0.00019452,2]
[346276891,1734859842412,-500.0,0.00019452,2]
[346276892,1734859842421,-500.0,0.00019452,2]
[346276893,1734859842431,-500.0,0.00019452,2]
[346276894,1734859842441,-500.0,0.00019452,2]
[346276895,1734859842453,-502.58,0.00019452,2]
[346276896,1734859842463,-309.38301303,0.00019452,2]
[346276897,1734859842475,-500.0,0.00019452,2]
[346276898,1734859842485,-500.0,0.00019452,2]
[346276899,1734859842494,-500.0,0.00019452,2]
[346276900,1734859842503,-500.0,0.00019452,2]
[346276901,1734859842512,-500.0,0.00019452,2]
[346276902,1734859842522,-500.0,0.00019452,2]
[346276903,1734859842532,-500.0,0.00019452,2]
[346276904,1734859842542,-500.0,0.00019452,2]
[346276905,1734859842551,-500.0,0.00019452,2]
[346276906,1734859842561,-500.0,0.00019452,2]
[346276907,1734859842571,-500.0,0.00019452,2]
[346276908,1734859842581,-500.0,0.00019452,2]
[346276909,1734859842591,-500.0,0.00019452,2]
[346276910,1734859842601,-852.08,0.00019452,2]
[346276911,1734859842611,-500.0,0.00019452,2]
[346276912,1734859842621,-500.0,0.00019452,2]
[346276913,1734859842630,-500.0,0.00019452,2]
[346276914,1734859842641,-500.0,0.00019452,2]
[346276915,1734859842651,-500.0,0.00019452,2]
[346276916,1734859842661,-500.0,0.00019452,2]
[346276917,1734859842672,-520.046889,0.00019452,2]
[346276918,1734859842683,-500.0,0.00019452,2]
[346276919,1734859842694,-500.0,0.00019452,2]
[346276920,1734859842705,-500.0,0.00019452,2]
[346276922,1734859842714,-500.0,0.00019452,2]
[346276923,1734859842723,-500.0,0.00019452,2]
[346276924,1734859842733,-978.65,0.00019452,2]
[346276925,1734859842743,-557.98,0.00019452,2]
[346276926,1734859842752,-500.0,0.00019452,2]
[346276927,1734859842764,-696.39,0.00019452,2]
[346276928,1734859842774,-500.0,0.00019452,2]
[346276929,1734859842785,-500.0,0.00019452,2]
[346276930,1734859842795,-500.0,0.00019452,2]
[346276931,1734859842805,-500.0,0.00019452,2]
[346276932,1734859842815,-500.0,0.00019452,2]
[346276933,1734859842825,-500.0,0.00019452,2]
[346276934,1734859842835,-507.74,0.00019452,2]
[346276936,1734859842845,-500.0,0.00019452,2]
[346276938,1734859842856,-500.0,0.00019452,2]
[346276940,1734859842866,-2889.29,0.00019452,2]
[346276942,1734859842876,-500.0,0.00019452,2]
[346276944,1734859842886,-500.0,0.00019452,2]
[346276946,1734859842895,-500.0,0.00019452,2]
[346276949,1734859842906,-973.78,0.00019452,2]
[346276950,1734859842915,-689.56,0.00019452,2]
[346276951,1734859842925,-500.0,0.00019452,2]
[346276952,1734859842934,-929.78,0.00019452,2]
[346276953,1734859842945,-680.79,0.00019452,2]
[346276954,1734859842955,-500.0,0.00019452,2]
[346276955,1734859842965,-1460.08,0.00019452,2]
[346276956,1734859842975,-732.85,0.00019452,2]
[346276957,1734859842984,-418.86,0.00019452,2]
[346276958,1734859842996,-1363.68,0.00019452,2]
[346276959,1734859843006,-875.5,0.00019452,2]
[346276960,1734859843015,-760.42,0.00019452,2]
[346276961,1734859843025,-10528.19,0.00019452,2]
[346276962,1734859843035,-500.0,0.00019452,2]
[346276963,1734859843044,-611.74,0.00019452,2]
[346276964,1734859843054,-1824.2,0.00019452,2]
[346276965,1734859843065,-559.82,0.00019452,2]
[346276966,1734859843074,-8798.92,0.00019452,2]
[346276967,1734859843087,-153.37808235,0.00019452,2]
[346276968,1734859843096,-500.0,0.00019452,2]
[346276969,1734859843106,-500.0,0.00019452,2]
[346276970,1734859843116,-1000.26,0.00019452,2]
[346276971,1734859843125,-500.0,0.00019452,2]
[346276972,1734859843135,-709.0,0.00019452,2]
[346276973,1734859843146,-562.25,0.00019452,2]
[346276974,1734859843155,-966.19,0.00019452,2]
[346276975,1734859843165,-500.0,0.00019452,2]
[346276976,1734859843174,-1099.83,0.00019452,2]
[346276977,1734859843184,-624.44,0.00019452,2]
[346276978,1734859843195,-500.0,0.00019452,2]
[346276979,1734859843205,-650.36,0.00019452,2]
[346276980,1734859843214,-555.82,0.00019452,2]
[346276981,1734859843223,-500.0,0.00019452,2]
[346276982,1734859843233,-6692.92,0.00019452,2]
[346276983,1734859843242,-826.91,0.00019452,2]
[346276984,1734859843252,-1064.53,0.00019452,2]
[346276985,1734859843261,-580.41,0.00019452,2]
[346276986,1734859843271,-519.68,0.00019452,2]
[346276987,1734859843281,-668.27,0.00019452,2]
[346276988,1734859843291,-500.0,0.00019452,2]
[346276989,1734859843301,-1516.73,0.00019452,2]
[346276991,1734859843310,-274.84,0.00019452,2]
[346276992,1734859843322,-500.0,0.00019452,2]
[346276993,1734859843337,-500.98,0.00019452,2]
[346276994,1734859843348,-1394.3,0.00019452,2]
[346276995,1734859843358,-500.0,0.00019452,2]
[346276996,1734859843369,-1981.85,0.00019452,2]
[346276997,1734859843380,-500.0,0.00019452,2]
[346276998,1734859843390,-2384.57,0.00019452,2]
[346276999,1734859843400,-500.0,0.00019452,2]
[346277000,1734859843409,-2329.25,0.00019452,2]
[346277001,1734859843419,-786.56,0.00019452,2]
[346277003,1734859843429,-809.32,0.00019452,2]
[346277004,1734859843438,-539.8,0.00019452,2]
[346277005,1734859843449,-500.0,0.00019452,2]
[346277006,1734859843458,-750.36,0.00019452,2]
[346277007,1734859843469,-763.69,0.00019452,2]
[346277008,1734859843478,-13466.15,0.00019452,2]
[346277010,1734859843488,-518.43,0.00019452,2]
[346277011,1734859843498,-2540.46,0.00019452,2]
[346277012,1734859843507,-22222.97,0.00019452,2]
[346277013,1734859843517,-1361.38,0.00019452,2]
[346277014,1734859843527,-500.0,0.00019452,2]
[346277015,1734859843536,-670.6,0.00019452,2]
[346277016,1734859843546,-500.0,0.00019452,2]
[346277017,1734859843555,-674.83,0.00019452,2]
[346277018,1734859843565,-1788.86,0.00019452,2]
[346277019,1734859843575,-500.0,0.00019452,2]
[346277020,1734859843584,-2373.5,0.00019452,2]
[346277021,1734859843595,-6504.97,0.00019452,2]
[346277023,1734859843605,-500.0,0.00019452,2]
[346277025,1734859843615,-683.29,0.00019452,2]
[346277026,1734859843625,-2321.87,0.00019452,2]
[346277027,1734859843635,-1095.88,0.00019452,2]
[346277028,1734859843646,-644.27,0.00019452,2]
[346277029,1734859843655,-500.0,0.00019452,2]
[346277031,1734859843665,-4770.55,0.00019452,2]
[346277032,1734859843675,-2230.66,0.00019452,2]
[346277033,1734859843685,-979.05,0.00019452,2]
[346277035,1734859843695,-500.0,0.00019452,2]
[346277037,1734859843706,-500.0,0.00019452,2]
[346277038,1734859843715,-3180.89,0.00019452,2]
[346277039,1734859843725,-1217.46,0.00019452,2]
[346277040,1734859843735,-500.0,0.00019452,2]
[346277041,1734859843744,-2759.44,0.00019452,2]
[346277042,1734859843754,-500.0,0.00019452,2]
[346277043,1734859843765,-500.0,0.00019452,2]
[346277044,1734859843775,-500.0,0.00019452,2]
[346277045,1734859843785,-500.0,0.00019452,2]
[346277046,1734859843795,-500.0,0.00019452,2]
[346277047,1734859843804,-9708.87,0.00019452,2]
[346277048,1734859843814,-882.3,0.00019452,2]
[346277049,1734859843824,-6166.62,0.00019452,2]
[346277050,1734859843834,-3631.54,0.00019452,2]
[346277051,1734859843844,-1660.3,0.00019452,2]
[346277052,1734859843854,-2280.25,0.00019452,2]
[346277053,1734859843863,-500.0,0.00019452,2]
[346277054,1734859843873,-1117.59,0.00019452,2]
[346277055,1734859843882,-1125.4,0.00019452,2]
[346277056,1734859843892,-500.0,0.00019452,2]
[346277057,1734859843902,-500.0,0.00019452,2]
[346277058,1734859843911,-500.0,0.00019452,2]
[346277059,1734859843921,-500.0,0.00019452,2]
[346277060,1734859843930,-732.88,0.00019452,2]
[346277061,1734859843940,-442.18924643,0.00019452,2]
[346277062,1734859843950,-1000.0,0.00019452,2]
[346277063,1734859843959,-658.83,0.00019452,2]
[346277064,1734859843969,-500.0,0.00019452,2]
[346277065,1734859843979,-500.0,0.00019452,2]
[346277066,1734859843988,-586.02,0.00019452,2]
[346277067,1734859843998,-500.0,0.00019452,2]
[346277068,1734859844007,-500.0,0.00019452,2]
[346277069,1734859844017,-1891.71,0.00019452,2]
[346277070,1734859844026,-20963.85,0.00019452,2]
[346277071,1734859844036,-500.0,0.00019452,2]
[346277072,1734859844046,-500.0,0.00019452,2]
[346277073,1734859844055,-935.79,0.00019452,2]
[346277074,1734859844065,-552.13,0.00019452,2]
[346277075,1734859844074,-500.0,0.00019452,2]
[346277076,1734859844084,-500.0,0.00019452,2]
[346277077,1734859844093,-688.25,0.00019452,2]
[346277078,1734859844103,-1269.77,0.00019452,2]
[346277079,1734859844112,-786.76,0.00019452,2]
[346277080,1734859844121,-500.0,0.00019452,2]
[346277081,1734859844131,-500.0,0.00019452,2]
[346277082,1734859844140,-500.0,0.00019452,2]
[346277083,1734859844150,-625.05,0.00019452,2]
[346277084,1734859844161,-500.0,0.00019452,2]
[346277085,1734859844332,-500.0,0.00019452,2]
[346277086,1734859844341,-456.65525755,0.00019452,2]
[346277087,1734859844350,-741.47,0.00019452,2]
[346277088,1734859844359,-996.12,0.00019452,2]
[346277089,1734859844368,-500.0,0.00019452,2]
[346277090,1734859844377,-3469.88,0.00019452,2]
[346277091,1734859844387,-434.57641549,0.00019456,2]
[346277092,1734859844396,-603.32674214,0.00019456,2]
[346277093,1734859844405,-152.0,0.00019497,4]
[346277094,1734859844414,-434.57641549,0.00019567,2]
[346277095,1734859844423,-603.32674214,0.00019567,2]
[346277096,1734859844433,-150.0,0.00019588,2]
[346277097,1734859844442,-1029.34927452,0.000196,2]
[346277098,1734859844453,-1101.13501553,0.000196,2]
[346277099,1734859844462,-1054.64299526,0.000196,2]
[346277100,1734859844471,-434.57641549,0.00019678,2]
[346277101,1734859844482,-603.32674214,0.00019678,2]
[346277102,1734859844491,-1000.0,0.000197,2]
[346277103,1734859844501,-7355.31,0.00019725,2]
[346277104,1734859844510,-374.297734,0.00019726,2]
[346277105,1734859844518,-522.722721,0.00019726,2]
[346277106,1734859844528,-400.73,0.00019726,2]
[346277107,1734859844537,-500.0,0.00019726,2]
[346277108,1734859844546,-500.0,0.00019726,2]
[346277109,1734859844557,-500.0,0.00019726,2]
[346277110,1734859844567,-500.0,0.00019726,2]
[346277111,1734859844576,-757.21,0.00019726,2]